bitfinex/quotes_ETHUSD_20250630
["timestamp","ask_amount","ask_price","bid_price","bid_amount"]
[1751294191780,0.01,2462.1,2462.0,33.4749332]
[1751294192677,0.01,2462.1,2462.0,29.2812902]
[1751294192878,0.01,2462.1,2462.0,16.3443152]
[1751294193081,0.01,2462.1,2462.0,25.0243152]
[1751294194678,0.01,2462.1,2462.0,55.8004152]
[1751294195325,0.01,2462.1,2462.0,55.80046038]
[1751294197179,0.01,2462.1,2462.0,56.35046038]
[1751294198010,0.01,2462.1,2462.0,26.35046038]
[1751294198215,0.01,2462.7,2462.6,34.0607488]
[1751294198438,0.01,2462.7,2462.6,32.364853]
[1751294198629,0.01,2462.7,2462.6,25.019072]
[1751294198940,0.01,2462.7,2462.6,28.711433]
[1751294199116,0.01,2462.7,2462.6,30.542137]
[1751294199299,0.01,2462.7,2462.6,31.092137]
[1751294199630,0.01,2462.7,2462.6,29.650132]
[1751294199835,0.01,2462.7,2462.6,25.019072]
[1751294200033,0.01,2462.7,2462.6,16.343072]
[1751294200215,0.01,2462.7,2462.6,25.019072]
[1751294200532,0.01,2462.7,2462.6,14.64073972]
[1751294200731,0.01,2462.7,2462.6,23.31573972]
[1751294202314,0.01,2462.7,2462.6,16.1051488]
[1751294202521,0.01,2462.7,2462.6,4.2631488]
[1751294202720,0.7611,2462.7,2462.6,6.1051488]
[1751294202920,0.7611,2462.7,2462.6,12.9371488]
[1751294203635,0.7611,2462.7,2462.6,10.8927488]
[1751294205432,0.7611,2462.7,2462.6,4.0607488]
[1751294206900,0.7611,2462.7,2462.6,11.0941488]
[1751294208543,0.7611,2462.7,2462.6,4.2631488]
[1751294209038,1.97132346,2462.7,2462.6,4.2631488]
[1751294209344,1.97132346,2462.7,2462.4,16.978]
[1751294209345,0.7587,2462.6,2462.4,14.41140318]
[1751294209711,0.7587,2462.6,2462.5,4.0609137]
[1751294210112,0.7587,2462.6,2462.4,4.06093687]
[1751294210335,0.9674,2462.6,2462.5,4.0609137]
[1751294210544,2.32027581,2462.6,2462.4,4.06100511]
[1751294210711,0.765,2462.5,2462.4,4.06100511]
[1751294211115,0.765,2462.5,2462.4,10.89000511]
[1751294211317,0.765,2462.5,2462.4,11.09240511]
[1751294211818,0.8169,2462.7,2462.6,4.0607488]
[1751294212018,0.01,2462.7,2462.6,10.8897488]
[1751294212320,0.01,2462.7,2462.6,11.0921488]
[1751294212551,0.01,2462.7,2462.6,13.84485167]
[1751294213155,0.01,2462.7,2462.6,13.01355167]
[1751294214971,0.01,2462.7,2462.6,14.85455167]
[1751294215145,0.01,2462.7,2462.6,12.9331488]
[1751294216288,0.01,2462.7,2462.6,4.2631488]
[1751294216452,0.8113,2462.7,2462.6,4.2631488]
[1751294217975,0.8113,2462.7,2462.6,11.0891488]
[1751294218557,0.8113,2462.7,2462.6,4.2631488]
[1751294219575,0.8113,2462.7,2462.6,11.0891488]
[1751294219945,0.8113,2462.7,2462.6,4.2631488]
[1751294220769,0.01,2462.7,2462.6,4.2631488]
[1751294221085,0.01,2462.7,2462.6,5.96175115]
[1751294221461,0.01,2462.7,2462.6,12.78675115]
[1751294222357,0.01,2462.7,2462.6,11.0881488]
[1751294222567,0.7783,2462.7,2462.6,11.0881488]
[1751294223594,0.7783,2462.7,2462.6,4.2631488]
[1751294223806,0.7783,2462.7,2462.6,4.0607488]
[1751294226686,0.7783,2462.7,2462.6,4.2631488]
[1751294227297,0.7783,2462.7,2462.6,11.0871488]
[1751294228988,0.01,2462.7,2462.6,11.0871488]
[1751294230277,0.01,2462.7,2462.6,12.78555114]
[1751294230474,0.01,2462.7,2462.6,11.0871488]
[1751294232318,0.7963,2462.7,2462.6,4.0607488]
[1751294234480,0.7963,2462.7,2462.4,4.06101314]
[1751294234810,11.3411346,2462.5,2462.4,4.06101314]
[1751294235921,12.1049346,2462.5,2462.4,4.06107862]
[1751294236122,13.33666806,2462.5,2462.4,4.06107862]
[1751294237634,12.1049346,2462.5,2462.4,4.06107862]
[1751294237835,0.9849,2462.7,2462.6,4.0607488]
[1751294238139,0.9849,2462.7,2462.5,4.06081767]
[1751294238442,0.9849,2462.7,2462.6,4.0607488]
[1751294239503,0.755,2462.6,2462.0,0.02]
[1751294239711,12.0961346,2462.2,2462.1,4.06157345]
[1751294240051,8.14596147,2462.2,2462.1,4.06157345]
[1751294240405,8.14596147,2462.2,2462.0,0.2224]
[1751294240713,0.81459615,2462.1,2462.0,4.08173842]
[1751294241109,0.81459615,2462.1,2462.0,0.02]
[1751294241309,0.81459615,2462.1,2462.0,4.08173842]
[1751294242107,12.10395027,2462.1,2462.0,4.08173842]
[1751294242304,11.28935412,2462.1,2462.0,4.08173842]
[1751294243040,12.08055412,2462.1,2462.0,4.08173842]
[1751294243627,11.49175412,2462.4,2462.3,4.06124355]
[1751294244011,12.32255412,2462.4,2462.3,4.06124355]
[1751294245036,12.87255412,2462.4,2462.2,4.06134495]
[1751294245207,12.12015412,2462.4,2462.3,4.06124355]
[1751294245410,12.32255412,2462.4,2462.3,4.06124355]
[1751294245921,19.14055412,2462.4,2462.3,4.06124355]
[1751294246837,11.28935412,2462.4,2462.3,4.06124355]
[1751294250718,6.827,2462.5,2462.4,4.06107862]
[1751294252035,0.01,2462.5,2462.4,4.06107862]
[1751294252238,6.826,2462.5,2462.4,4.06107862]
[1751294252554,0.01,2462.5,2462.4,4.06107862]
[1751294254053,0.788,2462.5,2462.4,4.06107862]
[1751294255155,2.69857541,2462.5,2462.3,4.06115072]
[1751294255368,6.815,2462.4,2462.0,0.02]
[1751294255663,12.04235412,2462.3,2462.2,4.06140849]
[1751294255819,12.24475412,2462.3,2462.2,4.06140849]
[1751294256015,14.34278707,2462.3,2462.2,4.06140849]
[1751294256231,14.34278707,2462.3,2462.1,4.06148622]
[1751294256434,6.815,2462.2,2462.1,4.06148622]
[1751294256821,6.815,2462.2,2462.0,4.08162914]
[1751294257039,0.2024,2462.1,2462.0,4.08167183]
[1751294257237,3.14457871,2462.1,2462.0,0.02]
[1751294257820,3.69457871,2462.1,2462.0,0.02]
[1751294258423,3.69457871,2462.1,2462.0,4.08173842]
[1751294259148,3.69457871,2462.1,2462.0,0.02]
[1751294259652,3.69457871,2462.1,2462.0,4.08173842]
[1751294259947,3.69457871,2462.1,2462.0,0.02]
[1751294260941,3.69457871,2462.1,2462.0,4.08173842]
[1751294261527,9.95857871,2462.1,2462.0,4.08173842]
[1751294263638,7.0144,2462.1,2462.0,4.08173842]
[1751294263837,14.40512671,2462.1,2462.0,4.08173842]
[1751294264334,7.59312671,2462.1,2462.0,4.08173842]
[1751294264535,7.39072671,2462.1,2462.0,4.08173842]
[1751294265358,7.0144,2462.2,2462.1,4.06157345]
[1751294265572,0.2024,2462.2,2462.1,4.06157345]
[1751294265728,2.4924,2462.4,2462.3,4.06124355]
[1751294265930,16.69512671,2462.4,2462.3,4.06124355]
[1751294266735,16.69412671,2462.4,2462.3,4.06124355]
[1751294267628,16.70412671,2462.4,2462.3,4.06124355]
[1751294268565,9.89312671,2462.4,2462.3,4.06124355]
[1751294268762,16.50072671,2462.4,2462.3,5.27966223]
[1751294268963,9.69072671,2462.4,2462.3,4.06124355]
[1751294269149,2.3,2462.4,2462.3,4.06124355]
[1751294269332,2.3,2462.4,2462.3,4.26364355]
[1751294269532,0.01,2462.4,2462.3,5.09504355]
[1751294270628,0.01,2462.4,2462.3,4.26364355]
[1751294271358,0.01,2462.4,2462.3,4.06124355]
[1751294272561,8.33772267,2462.4,2462.2,4.06131624]
[1751294272779,8.54012267,2462.4,2462.2,4.06134049]
[1751294272951,9.09012267,2462.4,2462.2,4.06133171]
[1751294273146,9.09012267,2462.4,2462.3,4.06124355]
[1751294273673,1.73212267,2462.4,2462.3,4.06124355]
[1751294273868,7.0204,2462.4,2462.3,4.06124355]
[1751294274784,7.0204,2462.4,2462.2,4.06133863]
[1751294275079,7.0204,2462.4,2462.1,4.06146009]
[1751294275245,17.368,2462.4,2462.3,4.06124355]
[1751294275445,24.75872671,2462.4,2462.3,4.06124355]
[1751294275664,27.31310938,2462.4,2462.3,4.06124355]
[1751294275981,0.8033,2462.2,2462.0,0.02]
[1751294276182,31.37428185,2462.4,2461.1,0.783]
[1751294276183,0.55,2461.9,2461.1,0.783]
[1751294276416,4.86596549,2461.5,2461.1,0.02]
[1751294276679,8.39642671,2461.2,2460.7,0.02]
[1751294276882,0.2024,2461.0,2460.7,0.02]
[1751294277181,8.39642671,2460.8,2460.7,4.08388426]
[1751294277774,12.30706329,2460.8,2460.7,4.08388426]
[1751294278273,12.85706329,2460.8,2460.7,0.02]
[1751294278451,12.85706329,2460.8,2460.1,0.2232]
[1751294278452,10.55,2460.7,2460.1,0.2232]
[1751294278654,11.30136329,2460.4,2460.3,4.06454497]
[1751294278887,7.0112,2460.6,2460.5,4.06421459]
[1751294279086,0.2032,2460.6,2460.5,4.06421459]
[1751294280056,0.2032,2460.6,2460.4,4.06429073]
[1751294280258,7.357,2460.5,2460.2,4.06457747]
[1751294280497,12.29076329,2460.3,2460.2,4.06457747]
[1751294280662,18.31156329,2460.3,2460.2,4.06457747]
[1751294280864,0.2032,2460.3,2460.2,4.06457747]
[1751294281574,0.2032,2460.3,2460.1,0.02]
[1751294281575,18.31256329,2460.3,2460.1,0.02]
[1751294281759,0.7532,2460.1,2460.0,0.02]
[1751294281966,7.0102,2460.1,2460.0,4.08504065]
[1751294282496,7.0102,2460.1,2460.0,0.02]
[1751294282913,7.0102,2460.1,2460.0,4.08504065]
[1751294283514,7.0102,2460.1,2460.0,0.02]
[1751294283715,9.10690196,2460.1,2460.0,4.08504065]
[1751294284013,9.10690196,2460.1,2460.0,0.02]
[1751294284213,9.10690196,2460.1,2460.0,4.08504065]
[1751294286104,2.29990196,2460.1,2460.0,4.08504065]
[1751294286305,7.0112,2460.1,2460.0,4.08504065]
[1751294287801,7.0112,2460.1,2460.0,0.02]
[1751294288141,18.3218,2460.1,2460.0,0.02]
[1751294288431,18.3208,2460.1,2460.0,0.02]
[1751294288634,21.8718722,2460.1,2460.0,0.02]
[1751294289293,25.93674761,2460.1,2460.0,0.02]
[1751294289935,21.8718722,2460.1,2460.0,0.02]
[1751294290405,25.93674761,2460.1,2460.0,0.02]
[1751294290603,21.8718722,2460.1,2460.0,0.02]
[1751294290790,4.61537116,2459.8,2458.6,0.77]
[1751294290991,0.8216,2459.2,2458.6,0.77]
[1751294291311,6.807,2459.1,2458.9,4.06678302]
[1751294291512,6.807,2459.1,2458.8,4.06693562]
[1751294291699,6.807,2459.1,2458.9,4.0668588]
[1751294292022,6.807,2459.1,2458.9,4.06677515]
[1751294292892,6.807,2459.1,2459.0,4.08669377]
[1751294293192,6.807,2459.1,2459.0,0.02]
[1751294293393,22.2451284,2459.1,2459.0,0.02]
[1751294293694,25.59977757,2459.1,2459.0,0.02]
[1751294294096,25.59977757,2459.1,2457.9,0.77]
[1751294294097,1.3087,2458.7,2457.9,0.77]
[1751294294313,0.55,2458.4,2458.1,4.0680572]
[1751294294530,6.808,2458.3,2458.1,4.06804321]
[1751294294821,6.808,2458.3,2458.1,4.06808015]
[1751294295227,7.358,2458.3,2458.2,4.06801724]
[1751294295603,7.358,2458.3,2457.9,0.77]
[1751294295604,11.30136329,2458.5,2457.9,0.77]
[1751294295794,11.30136329,2458.5,2458.3,4.067703]
[1751294295795,6.807,2458.4,2458.3,4.067703]
[1751294296138,6.807,2458.4,2458.3,4.06785176]
[1751294296338,1.7357,2458.4,2458.3,4.06785176]
[1751294296524,6.809,2458.4,2458.3,4.06785176]
[1751294296693,10.0,2458.6,2458.5,4.06752084]
[1751294297009,16.808,2458.6,2458.4,4.06761155]
[1751294297201,10.0,2458.6,2458.4,4.06761155]
[1751294297406,16.808,2458.5,2458.4,4.06761155]
[1751294297740,10.8259,2459.0,2458.8,4.06696747]
[1751294297923,10.8259,2459.0,2458.4,4.06766799]
[1751294297924,6.808,2458.9,2458.7,4.06709175]
[1751294298238,4.06610512,2459.4,2458.4,4.89568239]
[1751294298239,0.8293,2459.4,2458.4,4.89568239]
[1751294298545,6.808,2459.3,2459.0,4.06660298]
[1751294298709,6.808,2459.3,2459.1,4.06646892]
[1751294298937,0.8293,2459.4,2459.3,4.06619769]
[1751294299110,8.85036633,2459.4,2458.9,4.06685916]
[1751294299303,12.04236633,2459.4,2459.1,4.06638544]
[1751294299512,6.808,2459.3,2458.8,0.8166]
[1751294299793,6.808,2459.3,2459.1,4.06651993]
[1751294299992,6.808,2459.3,2459.1,4.06645808]
[1751294300195,6.808,2459.3,2458.8,0.8166]
[1751294300654,9.82317296,2459.3,2458.9,4.06685916]
[1751294300945,0.2032,2459.1,2459.0,4.06669377]
[1751294301233,0.2032,2459.1,2458.8,4.06692693]
[1751294301441,0.2032,2459.1,2459.0,4.06669377]
[1751294301738,6.808,2459.1,2459.0,4.06669377]
[1751294302099,0.2032,2459.3,2459.2,4.06636304]
[1751294302299,7.0112,2459.3,2459.1,4.06645088]
[1751294302611,8.3426988,2459.3,2459.0,4.06660225]
[1751294303007,0.7727,2459.2,2458.8,4.06693659]
[1751294303209,0.2032,2459.1,2458.8,4.06702456]
[1751294303429,0.2032,2459.1,2458.9,4.06674704]
[1751294303732,0.2032,2459.1,2458.8,4.06695595]
[1751294303942,0.2032,2459.1,2458.9,4.0666995]
[1751294304299,1.41571713,2459.1,2458.9,4.0666995]
[1751294304499,1.41571713,2459.1,2458.8,4.06695445]
[1751294304812,1.41571713,2459.1,2458.9,4.06683636]
[1751294305111,1.41571713,2459.1,2458.8,4.06695247]
[1751294305296,1.41571713,2459.1,2458.7,0.2032]
[1751294305502,1.41571713,2459.1,2458.9,4.06676927]
[1751294305703,1.41571713,2459.1,2458.7,0.2032]
[1751294305919,1.41571713,2459.1,2458.7,4.2703032]
[1751294306230,6.807,2459.0,2458.8,4.06701806]
[1751294306429,6.807,2459.0,2458.7,4.2702951]
[1751294306820,6.807,2459.0,2458.8,4.06702101]
[1751294307503,6.807,2459.0,2458.7,0.2032]
[1751294307707,12.17292928,2459.0,2458.7,0.2032]
[1751294308042,8.30935031,2459.0,2458.7,4.06710732]
[1751294308198,8.30935031,2459.0,2458.2,10.0]
[1751294308199,0.8052,2458.9,2458.2,10.7923]
[1751294308506,0.2032,2458.8,2458.5,4.06741717]
[1751294308706,0.2032,2458.8,2458.6,4.06732744]
[1751294309525,0.2032,2458.8,2458.4,4.2708177]
[1751294309709,0.2032,2458.8,2458.7,4.06718997]
[1751294309912,6.816,2459.3,2458.9,4.06677391]
[1751294310136,0.2032,2459.2,2458.9,4.06677391]
[1751294310323,0.2032,2459.2,2459.0,4.06667639]
[1751294310634,7.0082,2459.2,2459.1,4.0665284]
[1751294311417,7.0082,2459.2,2458.9,4.06682349]
[1751294311617,0.2032,2459.2,2459.0,4.06659898]
[1751294311939,0.2032,2459.2,2459.1,4.0665284]
[1751294312436,0.2032,2459.2,2459.0,4.06660833]
[1751294313432,0.2032,2459.2,2459.0,4.06668648]
[1751294313816,0.2032,2459.2,2459.1,4.0665284]
[1751294314138,0.2032,2459.2,2459.0,4.06660578]
[1751294314524,0.2032,2459.2,2458.9,4.06676868]
[1751294315243,0.2032,2459.2,2458.8,4.27013354]
[1751294315423,4.26956454,2459.2,2458.8,0.2032]
[1751294315626,0.2032,2459.2,2458.8,4.27018589]
[1751294316024,0.2032,2459.2,2458.8,4.27017896]
[1751294316342,0.2032,2459.2,2458.9,4.06678502]
[1751294317204,0.2132,2459.2,2458.9,4.06678502]
[1751294318643,0.2132,2459.2,2459.0,4.0665878]
[1751294318843,0.01,2459.2,2459.1,5.1019284]
[1751294320036,0.01,2459.2,2459.1,0.2032]
[1751294320343,0.01,2459.2,2459.0,4.06659334]
[1751294320548,0.01,2459.2,2458.9,0.2032]
[1751294321313,0.97979553,2459.2,2458.9,0.2032]
[1751294321615,5.04617079,2459.2,2458.9,0.2032]
[1751294321809,0.97979553,2459.2,2458.9,0.2032]
[1751294322014,0.97979553,2459.2,2458.9,4.27004826]
[1751294322227,5.04618277,2459.2,2458.9,0.2032]
[1751294322833,0.97979553,2459.2,2458.9,0.2032]
[1751294323040,0.97979553,2459.2,2458.9,4.27005445]
[1751294323250,0.97979553,2459.2,2458.9,0.2032]
[1751294324954,0.97979553,2459.2,2458.9,4.26999515]
[1751294325125,0.97979553,2459.2,2459.0,4.06668311]
[1751294325455,0.97979553,2459.2,2458.9,4.26995739]
[1751294325825,0.01,2459.2,2458.9,0.2032]
[1751294326025,1.33684588,2459.2,2458.8,2.6518]
[1751294326241,4.06673093,2459.0,2458.7,0.2032]
[1751294326446,4.06686533,2458.9,2458.7,0.2032]
[1751294326620,12.07876329,2459.0,2458.4,1.82]
[1751294326952,4.06772658,2458.4,2458.2,0.2032]
[1751294327346,4.06761163,2458.5,2458.2,0.2032]
[1751294328053,1.17441049,2458.7,2458.2,4.27118118]
[1751294328249,5.24171644,2458.7,2458.2,4.27111914]
[1751294328449,5.03856623,2458.6,2458.2,4.27111914]
[1751294328652,4.06735574,2458.6,2458.2,4.27111914]
[1751294328856,10.86635574,2458.6,2458.2,4.27111914]
[1751294329061,11.30485588,2458.9,2458.2,0.9149139]
[1751294329226,6.8,2458.7,2458.4,4.27087626]
[1751294329562,7.77184983,2458.7,2458.5,4.06743267]
[1751294329725,7.77184983,2458.7,2458.4,4.27079752]
[1751294329925,6.8,2458.7,2458.5,4.06751635]
[1751294330123,6.8,2458.7,2458.4,4.27078955]
[1751294330539,7.97404983,2458.8,2458.5,4.06750944]
[1751294331339,1.17504983,2458.8,2458.4,0.2032]
[1751294331659,0.97184983,2458.8,2458.7,4.06718997]
[1751294331860,1.21466127,2459.1,2458.7,4.06718997]
[1751294331861,0.97138724,2459.1,2458.9,4.06685388]
[1751294332363,0.97138724,2459.1,2458.9,4.06678858]
[1751294332527,0.97138724,2459.1,2458.7,4.27029308]
[1751294332733,0.97138724,2459.1,2458.8,4.06702382]
[1751294333062,1.18458724,2459.2,2459.0,4.06668665]
[1751294333636,1.18458724,2459.2,2458.8,4.86371921]
[1751294333637,1.18458724,2459.2,2458.9,4.06677076]
[1751294333867,1.18458724,2459.2,2458.9,4.06671176]
[1751294334564,1.18458724,2459.2,2458.8,4.8637383]
[1751294335060,1.18458724,2459.2,2458.9,4.06678574]
[1751294335258,0.2132,2459.2,2458.9,4.06685173]
[1751294335566,0.2132,2459.2,2459.0,4.06669249]
[1751294335867,0.2132,2459.2,2458.9,4.06676261]
[1751294336162,0.01,2459.2,2459.1,4.0665284]
[1751294336665,0.01,2459.2,2458.9,4.26996138]
[1751294337263,0.01,2459.2,2459.0,4.06669046]
[1751294337567,0.01,2459.2,2459.1,4.0665284]
[1751294339235,0.01,2459.2,2459.0,4.06661482]
[1751294339636,0.01,2459.2,2459.1,4.0665284]
[1751294340869,0.01,2459.2,2459.1,4.8994284]
[1751294341042,0.01,2459.2,2459.1,5.99923272]
[1751294342131,0.01,2459.2,2459.1,15.99923272]
[1751294342965,0.01,2459.2,2459.1,22.79423272]
[1751294347046,0.01,2459.2,2459.1,32.01328272]
[1751294347246,0.01,2459.2,2459.1,29.30903272]
[1751294347479,0.01,2459.2,2459.1,25.23006772]
[1751294348571,0.01,2459.2,2459.1,25.78006772]
[1751294348760,0.01,2459.2,2459.1,48.23534672]
[1751294348946,0.01,2459.2,2459.1,38.23420272]
[1751294349384,0.01,2459.3,2459.2,39.52547704]
[1751294349585,0.01,2459.3,2459.2,38.51868913]
[1751294349886,0.01,2459.3,2459.2,25.73668513]
[1751294350186,0.01,2459.3,2459.2,17.13268513]
[1751294350492,0.01,2459.3,2459.2,25.73568513]
[1751294351554,0.01,2459.3,2459.2,17.13268513]
[1751294351773,0.01,2459.3,2459.2,13.65936304]
[1751294351980,0.01,2459.3,2459.2,4.26956304]
[1751294352195,0.01,2459.3,2459.2,12.87256304]
[1751294352857,0.01,2459.3,2459.2,6.08256304]
[1751294353056,0.01,2459.3,2459.2,12.87156304]
[1751294353354,0.01,2459.3,2459.2,16.05378367]
[1751294353963,0.01,2459.3,2459.2,0.2032]
[1751294354175,0.01,2459.3,2459.1,4.26963241]
[1751294354479,0.01,2459.3,2459.2,4.06636304]
[1751294354683,0.01,2459.3,2459.1,0.2032]
[1751294354884,0.01,2459.3,2459.0,12.688623]
[1751294355075,0.01,2459.3,2459.0,2.0362]
[1751294355384,0.52105148,2459.3,2459.0,6.10282736]
[1751294355886,0.52105148,2459.3,2459.0,0.02]
[1751294356195,0.8076,2459.1,2459.0,0.02]
[1751294356488,4.8741284,2459.1,2459.0,0.02]
[1751294356786,0.8076,2459.1,2459.0,0.02]
[1751294357147,4.8741284,2459.1,2459.0,0.02]
[1751294358479,5.4241284,2459.1,2459.0,0.02]
[1751294358680,7.50431753,2459.1,2459.0,0.02]
[1751294361656,0.8076,2459.1,2459.0,0.02]
[1751294361896,1.0108,2459.1,2459.0,0.02]
[1751294362256,0.81,2459.3,2459.0,4.08669377]
[1751294362590,0.2032,2459.2,2459.0,4.08669377]
[1751294362821,0.2032,2459.2,2459.0,0.02]
[1751294363295,0.7596,2459.1,2459.0,0.02]
[1751294364278,0.7596,2459.1,2459.0,4.08669377]
[1751294364672,0.2032,2459.2,2459.0,0.02]
[1751294364869,0.2032,2459.2,2459.1,4.0665284]
[1751294365056,0.2032,2459.2,2459.0,4.08668128]
[1751294365373,0.98563,2459.2,2459.0,0.02]
[1751294366189,0.98563,2459.2,2459.0,4.08660857]
[1751294366393,0.98563,2459.2,2459.1,4.0665284]
[1751294366394,0.2032,2459.2,2459.1,4.0665284]
[1751294366597,1.0373,2459.3,2459.2,4.06636304]
[1751294366797,0.2132,2459.3,2459.2,4.06636304]
[1751294367001,0.01,2459.3,2459.2,4.06636304]
[1751294369171,0.01,2459.3,2459.1,4.06640858]
[1751294369498,0.2132,2459.3,2459.1,4.06640858]
[1751294369697,0.8224,2459.2,2459.1,4.06639334]
[1751294370399,0.8224,2459.2,2459.0,0.02]
[1751294370767,0.8224,2459.2,2459.0,4.08668917]
[1751294370981,0.8224,2459.2,2459.0,0.02]
[1751294371298,0.2032,2459.1,2459.0,4.08662247]
[1751294372500,0.2032,2459.1,2459.0,0.02]
[1751294372899,12.05456329,2459.1,2459.0,0.02]
[1751294373204,33.66799169,2459.1,2459.0,0.02]
[1751294373398,29.60146329,2459.1,2459.0,0.02]
[1751294373576,36.62913802,2459.1,2459.0,0.02]
[1751294373782,32.56260962,2459.1,2459.0,0.02]
[1751294376296,6.9862,2459.1,2459.0,4.08669377]
[1751294376668,0.01,2459.2,2459.1,4.0665284]
[1751294377216,0.01,2459.2,2459.1,4.2697284]
[1751294377915,0.01,2459.2,2459.1,6.8944284]
[1751294378080,0.01,2459.2,2459.1,7.99254062]
[1751294378800,0.01,2459.2,2459.1,17.99254062]
[1751294381821,0.01,2459.2,2459.1,24.77354062]
[1751294382418,0.01,2459.2,2459.1,16.18554062]
[1751294382596,0.01,2459.2,2459.1,7.99254062]
[1751294385480,0.01,2459.2,2459.1,17.99254062]
[1751294387087,0.01,2459.2,2459.1,16.18554062]
[1751294387294,0.01,2459.2,2459.1,24.77054062]
[1751294389409,0.01,2459.2,2459.1,14.76954062]
[1751294389694,0.01,2459.2,2459.1,4.2697284]
[1751294390421,0.01,2459.2,2459.1,11.0467284]
[1751294391290,0.01,2459.2,2459.1,4.2697284]
[1751294391586,0.7555,2459.1,2459.0,0.02]
[1751294391790,0.7555,2459.1,2459.0,4.08669377]
[1751294391990,0.7555,2459.1,2459.0,0.02]
[1751294392390,1.25999167,2459.1,2459.0,0.02]
[1751294392591,0.9587,2459.1,2459.0,0.02]
[1751294393219,16.87659169,2459.1,2459.0,0.02]
[1751294393791,26.87659169,2459.1,2459.0,0.02]
[1751294406153,11.5087,2459.1,2459.0,0.02]
[1751294406355,22.3482284,2459.1,2459.0,0.02]
[1751294406504,24.99167832,2459.1,2459.0,0.02]
[1751294407020,20.92514992,2459.1,2459.0,0.02]
[1751294407217,12.84664992,2459.1,2459.0,0.02]
[1751294407418,16.9762,2459.1,2459.0,0.02]
[1751294407720,17.5262,2459.1,2459.0,0.02]
[1751294408342,7.5262,2459.1,2459.0,0.02]
[1751294408645,0.2032,2459.1,2459.0,0.02]
[1751294408815,6.9762,2459.1,2459.0,0.02]
[1751294409141,6.9762,2459.1,2459.0,4.08669377]
[1751294409514,6.9762,2459.1,2459.0,0.02]
[1751294409714,14.1061484,2459.1,2459.0,0.02]
[1751294410249,23.2923484,2459.1,2459.0,0.02]
[1751294410548,25.03020967,2459.1,2459.0,0.02]
[1751294412545,17.2896484,2459.1,2459.0,0.02]
[1751294412743,24.0606484,2459.1,2459.0,0.02]
[1751294412942,13.22312,2459.1,2459.0,0.02]
[1751294413144,19.99412,2459.1,2459.0,0.02]
[1751294413332,13.22312,2459.1,2459.0,0.02]
[1751294413537,19.22382,2459.1,2459.0,0.02]
[1751294414447,19.22382,2459.1,2459.0,4.08669377]
[1751294414645,0.2032,2459.1,2459.0,0.02]
[1751294414818,0.01,2459.2,2459.1,4.0665284]
[1751294415017,6.781,2459.2,2459.1,4.0665284]
[1751294415242,0.01,2459.2,2459.1,4.0665284]
[1751294415450,6.78,2459.2,2459.1,4.0665284]
[1751294415944,0.01,2459.2,2459.1,4.0665284]
[1751294417146,0.01,2459.2,2459.1,5.96955062]
[1751294418346,0.01,2459.2,2459.1,7.77055062]
[1751294419763,0.01,2459.2,2459.1,17.77055062]
[1751294419969,0.01,2459.2,2459.1,15.96955062]
[1751294420164,0.01,2459.2,2459.1,17.77055062]
[1751294420927,0.01,2459.2,2459.1,15.96955062]
[1751294421181,0.01,2459.2,2459.1,17.77055062]
[1751294421383,0.01,2459.2,2459.1,7.77055062]
[1751294421688,0.01,2459.2,2459.1,5.96955062]
[1751294421987,0.01,2459.2,2459.1,7.77055062]
[1751294422583,0.01,2459.2,2459.0,0.02]
[1751294422782,0.01,2459.2,2459.1,4.0665284]
[1751294423144,0.01,2459.2,2459.1,4.8591284]
[1751294426974,0.01,2459.2,2459.1,4.0665284]
[1751294428065,0.01,2459.2,2459.0,0.02]
[1751294428278,0.01,2459.2,2459.1,4.0665284]
[1751294428934,0.01,2459.2,2459.0,4.08661031]
[1751294429358,0.01,2459.2,2459.0,0.02]
[1751294429639,0.01,2459.2,2459.0,4.08662327]
[1751294429865,0.01,2459.2,2459.1,4.0665284]
[1751294430053,0.01,2459.2,2459.0,4.08662744]
[1751294430771,0.01,2459.2,2459.1,4.0665284]
[1751294431177,0.01,2459.2,2459.0,0.02]
[1751294431549,0.01,2459.2,2459.1,4.0665284]
[1751294432172,0.01,2459.2,2459.1,4.8260284]
[1751294432539,0.01,2459.2,2459.1,5.0292284]
[1751294433676,0.01,2459.2,2459.1,4.2697284]
[1751294436274,0.01,2459.2,2459.1,5.94156031]
[1751294439971,0.01,2459.2,2459.1,7.73656031]
[1751294442056,0.01,2459.2,2459.1,5.94156031]
[1751294442380,0.01,2459.2,2459.1,6.0647284]
[1751294445177,0.01,2459.2,2459.1,4.2697284]
[1751294445485,0.01,2459.2,2459.1,5.0473284]
[1751294446275,0.01,2459.2,2459.1,11.8063284]
[1751294449352,0.01,2459.2,2459.1,21.8063284]
[1751294449552,0.01,2459.2,2459.1,24.57513031]
[1751294452380,0.01,2460.2,2460.1,4.89527541]
[1751294452585,0.01,2460.2,2460.1,13.65047541]
[1751294458064,0.01,2460.2,2460.1,5.09847541]
[1751294458268,0.01,2460.2,2460.1,12.81607541]
[1751294459190,0.01,2460.2,2460.1,4.26807541]
[1751294461417,0.01,2460.2,2460.1,4.06487541]
[1751294461963,0.01,2460.2,2460.1,4.26807541]
[1751294462197,0.01,2460.2,2460.1,4.06487541]
[1751294465569,0.01,2460.2,2460.1,4.26807541]
[1751294466385,0.01,2460.2,2460.1,12.13711381]
[1751294466587,0.01,2460.2,2460.1,11.01807541]
[1751294470700,0.01,2460.2,2460.1,11.81267541]
[1751294471773,0.01,2460.2,2460.1,21.81267541]
[1751294472605,0.01,2460.3,2460.2,21.94584818]
[1751294472776,0.01,2460.3,2460.2,42.38641018]
[1751294473393,0.01,2460.3,2460.2,14.85931018]
[1751294473593,0.01,2460.3,2460.2,23.39531018]
[1751294475174,0.01,2460.3,2460.2,14.85931018]
[1751294475377,0.01,2460.3,2460.2,23.39431018]